Cogmind - Beta 9.3 @@@ ROGUE MODE // 2019.12.26 @ 19:35:41 // Winter2019/RPGLIKE Player: badjay Result: Destroyed by G-47 Trooper with Particle Gun Performance ------------- Evolutions (2) 1000 Regions Visited (5) 1000 Robots Destroyed (0) 0 Value Destroyed (0) 0 Prototype IDs (0) 0 Alien Tech Used (0) 0 Bonus (520) 520 TOTAL SCORE: 2520 Bonus ------- Pacifist 470 Follower Combat Kills 50 Cogmind --------- Core Integrity 0/600 Matter 300/300 Energy 99/100 System Corruption 0% Temperature Cool (10) Movement Flying (40) Location -8/Materials Parts ------- > --- POWER (1) -------- (None) > --- PROPULSION (1) --- Xenon Bombardment Thruster > --- UTILITY (1) ------ Improved Melee Analysis Suite > --- WEAPON (1) ------- Great Axe > --- INVENTORY (1) ---- Remote Datajack Peak State ------------ > --- POWER ------------ (None) > --- PROPULSION ------- Xenon Bombardment Thruster > --- UTILITY ---------- Improved Melee Analysis Suite > --- WEAPON ----------- Great Axe > --- INVENTORY -------- (None) [Rating: 12] Favorites ----------- Power None Propulsion Xenon Bombardment Thruster Flight Unit Xenon Bombardment Thruster Utility Improved Melee Analysis Suite Processor Improved Melee Analysis Suite Weapon Great Axe Slashing Weapon Great Axe Build | -11 -10 -10 -9 -9 -8 ------- Run | Scr Mat Min Mat Min Mat Slots Evolved . | . . . . . . Power . | . . . . . . Propulsion . | . . . . . . Utility . | . . . . . . Weapon . | . . . . . . Parts Attached 3 | . . . . 3 . Power . | . . . . . . Engine . | . . . . . . Core . | . . . . . . Reactor . | . . . . . . Propulsion 1 | . . . . 1 . Treads . | . . . . . . Leg . | . . . . . . Wheel . | . . . . . . Hover . | . . . . . . Flight 1 | . . . . 1 . Utility 1 | . . . . 1 . Device . | . . . . . . Storage . | . . . . . . Processor 1 | . . . . 1 . Hackware . | . . . . . . Protection . | . . . . . . Artifact . | . . . . . . Weapon 1 | . . . . 1 . Energy Gun . | . . . . . . Energy Cannon . | . . . . . . Ballistic Gun . | . . . . . . Ballistic Cannon . | . . . . . . Launcher . | . . . . . . Special Weapon . | . . . . . . Impact Weapon . | . . . . . . Slashing Weapon 1 | . . . . 1 . Piercing Weapon . | . . . . . . Special Melee Weapon . | . . . . . . Unidentified Prototypes . | . . . . . . Parts Lost . | . . . . . . Power . | . . . . . . Propulsion . | . . . . . . Utility . | . . . . . . Weapon . | . . . . . . Highest Loss Streak . | . . . . . . Average Slot Usage (%) 18 | . . . . 55 75 Flight 6 | . . . . 19 25 Processor 6 | . . . . 17 25 Slashing Weapon 6 | . . . . 19 25 Naked Turns 406 | . 58 199 117 32 . Heaviest Build 4 | . . . . 4 4 Greatest Support 7 | 3 3 3 3 7 7 Greatest Overweight (x) . | . . . . . . Average Overweight (x) . | . . . . . . Largest Inventory Capacity 1 | . . . . 1 1 Average Capacity . | . . . . . 1 Most Carried 1 | . . . . 1 1 Average Carried . | . . . . . 1 Final Capacity 1 | . . . . 1 1 Final Carried 1 | . . . . 1 1 Class Distribution -------------------- 92% | Hacker-Mutant 7% | Mutant Dominant Class ---------------- Mutant | -10/Materials Hacker-Mutant | -10/Mines Hacker-Mutant | -9/Materials Hacker-Mutant | -9/Mines Hacker-Mutant | -8/Materials Resources | -11 -10 -10 -9 -9 -8 ----------- Run | Scr Mat Min Mat Min Mat Matter Collected 219 | 46 . . 98 75 . Remotely . | . . . . . . Salvage Created . | . . . . . . Parts . | . . . . . . Haulers Intercepted . | . . . . . . Recyclers Shooed . | . . . . . . Parts Field Recycled . | . . . . . . Retrieved Matter . | . . . . . . Parts Self-Destructed . | . . . . . . Prevented . | . . . . . . Kills | -11 -10 -10 -9 -9 -8 ------- Run | Scr Mat Min Mat Min Mat Combat Hostiles Destroyed . | . . . . . . Classes Destroyed . | . . . . . . Best Kill Streak . | . . . . . . Combat Bots Only . | . . . . . . Max Kills in Single Turn . | . . . . . . Gunslinging . | . . . . . . Exploded . | . . . . . . Melee . | . . . . . . Uniques/NPCs Destroyed . | . . . . . . Combat | -11 -10 -10 -9 -9 -8 -------- Run | Scr Mat Min Mat Min Mat Damage Taken 618 | . 37 23 416 74 68 Core 613 | . 37 23 416 69 68 Absorbed by Shields . | . . . . . . Redirected to Core 19 | . . . . 19 . Core Remaining (%) 66 | 100 . 90 . 9 . Volleys Fired . | . . . . . . Largest . | . . . . . . Hottest . | . . . . . . Shots Fired . | . . . . . . Gun . | . . . . . . Cannon . | . . . . . . Launcher . | . . . . . . Special . | . . . . . . Kinetic . | . . . . . . Thermal . | . . . . . . Explosive . | . . . . . . Electromagnetic . | . . . . . . Robot Hit Streak . | . . . . . . Robot Miss Streak . | . . . . . . Penetration Max . | . . . . . . Secondary Targets . | . . . . . . Shots Hit Robots . | . . . . . . Core Hits 2 | . . 1 1 . . Critical Hits . | . . . . . . Critical Kills . | . . . . . . Critical Parts Destroyed . | . . . . . . Melee Attacks . | . . . . . . Impact . | . . . . . . Slashing . | . . . . . . Piercing . | . . . . . . Sneak Attacks . | . . . . . . Combat Hostiles . | . . . . . . Follow-up Attacks . | . . . . . . Damage Inflicted 9 | . . 3 6 . . Guns . | . . . . . . Cannons . | . . . . . . Explosions . | . . . . . . Melee . | . . . . . . Ramming 9 | . . 3 6 . . Kinetic . | . . . . . . Thermal . | . . . . . . Explosive . | . . . . . . Electromagnetic . | . . . . . . Impact . | . . . . . . Slashing . | . . . . . . Piercing . | . . . . . . Highest Corruption . | . . . . . . Average Corruption . | . . . . . . Corruption Purged . | . . . . . . Overload Shots . | . . . . . . Overflow Damage . | . . . . . . Projectiles . | . . . . . . Explosions . | . . . . . . Melee . | . . . . . . Knockbacks . | . . . . . . Impact . | . . . . . . Kinetic . | . . . . . . Secondary . | . . . . . . Self-Inflicted Damage 3 | . . 1 2 . . Shots . | . . . . . . Rammed 3 | . . 1 2 . . Targets Rammed 3 | . . 1 2 . . Kicked . | . . . . . . Crushed . | . . . . . . Highest Temperature . | . . . . . . Average Temperature . | . . . . . . Received Heat Transfer 170 | . 12 12 90 20 36 Siege Activations . | . . . . . . Robots Corrupted . | . . . . . . Combat Hostiles . | . . . . . . Parts Fried . | . . . . . . Impact Corruptions . | . . . . . . Robots Melted . | . . . . . . Combat Hostiles . | . . . . . . Parts Melted . | . . . . . . Heat Transferred . | . . . . . . Parts Sabotaged . | . . . . . . Parts Stolen . | . . . . . . Parts Stripped . | . . . . . . Power Chain Reactions . | . . . . . . Missiles Intercepted . | . . . . . . Alert | -11 -10 -10 -9 -9 -8 ------- Run | Scr Mat Min Mat Min Mat Peak Influence 96 | . 27 56 96 28 18 Average Influence 26 | . 11 29 47 15 13 Maximum Alert Level . | . . . . . . Low Security (%) 100 | 100 100 100 100 100 100 Level 1 . | . . . . . . Level 2 . | . . . . . . Level 3 . | . . . . . . Level 4 . | . . . . . . Level 5 . | . . . . . . High Security . | . . . . . . Max Security . | . . . . . . Squads Dispatched 5 | . 3 . . 1 1 Investigation 3 | . 1 . . 1 1 Extermination . | . . . . . . Reinforcement 2 | . 2 . . . . Assault . | . . . . . . Garrison . | . . . . . . Intercept . | . . . . . . Construction Impeded . | . . . . . . Haulers Reinforced . | . . . . . . Stealth | -11 -10 -10 -9 -9 -8 --------- Run | Scr Mat Min Mat Min Mat Distress Signals 3 | . . . 3 . . Communications Jammed . | . . . . . . Distress Signals . | . . . . . . Times Spotted 53 | . 8 1 20 19 5 Peak Tracking Total 18 | . 7 1 15 18 5 Tactical Retreats 3 | . . . 1 2 . Traps | -11 -10 -10 -9 -9 -8 ------- Run | Scr Mat Min Mat Min Mat Traps Triggered . | . . . . . . Indirectly . | . . . . . . Trap Hack Attempts . | . . . . . . Triggered . | . . . . . . Disarmed . | . . . . . . Reprogrammed . | . . . . . . Reused . | . . . . . . Traps Extracted . | . . . . . . Installed . | . . . . . . Triggered . | . . . . . . Machines | -11 -10 -10 -9 -9 -8 ---------- Run | Scr Mat Min Mat Min Mat Machines Disabled . | . . . . . . Max in Single Turn . | . . . . . . Machines Sabotaged . | . . . . . . Garrisons Compromised . | . . . . . . Overloaded Fab Kills . | . . . . . . Fab Network Shutdowns . | . . . . . . Hacking | -11 -10 -10 -9 -9 -8 --------- Run | Scr Mat Min Mat Min Mat Machines Accessed 5 | . 1 . 1 1 2 Terminals 4 | . 1 . 1 . 2 Fabricators . | . . . . . . Repair Stations . | . . . . . . Recycling Units . | . . . . . . Scanalyzers . | . . . . . . Garrison Access . | . . . . . . Total Hacks 19 | . 3 . 6 1 9 Successful 10 | . 2 . 1 1 6 Failed 9 | . 1 . 5 . 3 Catastrophic 1 | . . . 1 . . Database Lockouts . | . . . . . . Manual 14 | . 1 . 6 . 7 Terminals 18 | . 3 . 6 . 9 Fabricators . | . . . . . . Repair Stations . | . . . . . . Recycling Units . | . . . . . . Scanalyzers . | . . . . . . Garrison Access . | . . . . . . Terminal Hacks 3 | . 1 . . 1 1 Open Door 1 | . . . . 1 . Terminal Index 1 | . . . . . 1 Registered Components 1 | . 1 . . . . Fabricator Hacks . | . . . . . . Repair Station Hacks . | . . . . . . Recycling Unit Hacks . | . . . . . . Scanalyzer . | . . . . . . Garrison Access Hacks . | . . . . . . Unauthorized Hacks 16 | . 2 . 2 . 12 Terminals 7 | . 1 . 1 . 5 Track 1 | . . . . . 1 Botnet 4 | . 1 . 1 . 2 Disrupt 1 | . . . . . 1 Operators 1 | . . . . . 1 Fabricators . | . . . . . . Repair Stations . | . . . . . . Recycling Units . | . . . . . . Scanalyzers . | . . . . . . Garrison Access . | . . . . . . Data Cores Recovered . | . . . . . . Used . | . . . . . . Hacking Detections 4 | . 1 . 1 . 2 Full Trace Events 2 | . 1 . . . 1 Feedback Events . | . . . . . . Feedback Blocked . | . . . . . . Robot Schematics Acquired . | . . . . . . Robots Built . | . . . . . . Matter . | . . . . . . Time . | . . . . . . Total Robot Build Rating . | . . . . . . Part Schematics Acquired . | . . . . . . Parts Built . | . . . . . . Matter . | . . . . . . Time . | . . . . . . Total Part Build Rating . | . . . . . . Parts Repaired . | . . . . . . Time . | . . . . . . Parts Recycled . | . . . . . . Recycled Matter . | . . . . . . Retrieved Matter . | . . . . . . Retrieved Components . | . . . . . . Parts Scanalyzed . | . . . . . . Part Schematics Acquired . | . . . . . . Parts Damaged . | . . . . . . Bothacking | -11 -10 -10 -9 -9 -8 ------------ Run | Scr Mat Min Mat Min Mat Used RIF Installer . | . . . . . . Robots Hacked . | . . . . . . Non-combat . | . . . . . . Combat . | . . . . . . Robot Hacks Applied . | . . . . . . Relay Couplers Released . | . . . . . . Robots Rewired . | . . . . . . Allies Hacked . | . . . . . . Hacks Repelled . | . . . . . . Allies | -11 -10 -10 -9 -9 -8 -------- Run | Scr Mat Min Mat Min Mat Total Allies 3 | . . 3 . . . Largest Group 3 | . . 3 3 . . Highest-Rated Group 40 | . . 40 40 . . Highest-Rated Ally 16 | . . 16 16 . . Total Orders . | . . . . . . Ally Attacks 14 | . . 10 4 . . Total Damage 177 | . . 123 54 . . Kills 2 | . . 2 . . . Allies Corrupted . | . . . . . . Allies Melted . | . . . . . . Intel | -11 -10 -10 -9 -9 -8 ------- Run | Scr Mat Min Mat Min Mat Robot Analysis Total . | . . . . . . Derelict Logs Recovered 2 | . . 1 . 1 . Drone Launches . | . . . . . . Drone Recoveries . | . . . . . . Exploration | -11 -10 -10 -9 -9 -8 ------------- Run | Scr Mat Min Mat Min Mat Turns Passed 551 | 9 58 199 117 131 37 Spaces Moved 964 | 18 115 212 230 298 91 Core 638 | 18 115 212 230 63 . Treads . | . . . . . . Legs . | . . . . . . Wheels . | . . . . . . Hover . | . . . . . . Flight 326 | . . . . 235 91 Fastest Speed 40 | 50 50 50 50 40 40 Average Speed 46 | 50 50 50 50 42 40 Slowest Speed 50 | 50 50 50 50 50 40 Overloaded Moves . | . . . . . . Propulsion Burnouts . | . . . . . . Robots Hopped 2 | . . . . 1 1 Cave-ins Triggered . | . . . . . . Exploration Rate (%) 35 | 3 33 53 38 71 17 Regions Visited 5 Branch Regions 2 Pre-discovered Areas 1 | . . . . 1 . Known Exits Taken . | . . . . . . Unknown Exits Taken 5 | 1 1 1 1 1 . Scrap Searched 2 | . . . . 2 . Spaces Dug . | . . . . . . Terrain Destroyed . | . . . . . . Melee . | . . . . . . Projectile . | . . . . . . AOE . | . . . . . . Actions | -11 -10 -10 -9 -9 -8 --------- Run | Scr Mat Min Mat Min Mat Total 1056 | 17 114 304 231 300 90 Wait 92 | . . 92 . . . Move 956 | 17 114 211 230 295 89 Hop 2 | . . . . 1 1 Pick Up 1 | . . . . 1 . Fast Attach 3 | . . . . 3 . Attach . | . . . . . . Detach . | . . . . . . Swap . | . . . . . . Drop . | . . . . . . Fire . | . . . . . . Melee . | . . . . . . Ram 2 | . . 1 1 . . Kick . | . . . . . . Crush . | . . . . . . Escape Stasis . | . . . . . . Rewire . | . . . . . . Trap . | . . . . . . Miscellaneous . | . . . . . . Route ------- -11/Scrapyard -10/Materials -10/Mines -9/Materials (discovered 2 exits: *Min / [*Sto]) -9/Mines (discovered 2 exits: *Mat x2) -8/Materials (discovered 1 exit: [*Fac]) History --------- Turn | Location | Event 4 | -11/Scrapyard | Discovered new exit (range 14) 10 | -11/Scrapyard | Entered Materials 63 | -10/Materials | Discovered new exit (range 8) 68 | -10/Materials | Entered Mines 79 | -10/Mines | Learned Materials emergency access door positions 91 | -10/Mines | Assisted by bots powering up and referring to "LRC-V3" 102 | -10/Mines | Met a Derelict bent on vengeance 163 | -10/Mines | Excavation squad dispatched 163 | -10/Mines | A large section of the Mines collapsed 263 | -10/Mines | Discovered new exit (range 3) 267 | -10/Mines | Entered Materials 267 | -9/Materials | Accompanied by 3 allies 269 | -9/Materials | Reached level 2 299 | -9/Materials | Discovered new exit (range 9) 343 | -9/Materials | Build established: Hacker-Mutant 366 | -9/Materials | Core integrity fell below 50% 378 | -9/Materials | Discovered new exit (range 9) 384 | -9/Materials | Entered Mines 390 | -9/Mines | Met a Derelict shopkeep closing up shop 436 | -9/Mines | Learned location of Zion (-6) 438 | -9/Mines | Discovered new exit (range 4) 460 | -9/Mines | Assembled infested the area 486 | -9/Mines | Core integrity fell below 20% 511 | -9/Mines | Discovered new exit (range 12) 515 | -9/Mines | Reached level 3 515 | -9/Mines | Entered Materials 516 | -8/Materials | Core integrity fell below 50% 516 | -8/Materials | Core integrity fell below 20% 517 | -8/Materials | Reached level 4 547 | -8/Materials | Discovered new exit (range 10) 552 | -8/Materials | Destroyed by G-47 Trooper with Particle Gun Last Messages --------------- >>Trojan(Operators) Trojan loaded successfully. Testing... Operator tracking enabled and active. >>Trojan(Disrupt) Trojan loaded successfully. Testing... Disruption routine running. >>Index(Terminals) Found 12 terminals. Downloaded coordinate data. 00538_ ALERT: Suspicious activity at Terminal M012. Dispatching Investigation squad. 00547_ EXIT=FOUND 00548_ Connecting with Terminal... >>Trojan(Botnet) Trojan loaded successfully. Testing... Terminal linked with 1 system. Awaiting botnet instructions. Map ----- +----------------------------------------------------+ | #??????# ?????? | | #??????# ?????? | | #??????# """" """ ##????????? | | #??????# """" """ #?????????? | | #??????# """" """ #?????????? | | #??????# #?????????? | | ######## #?????????? | | g""" #?????????? | | ###########+#####t## """ #?????????? | | ???????? ?? # g"""g #?????????? | | #?????? # #?????????? | | #?????# # * #?????????? | | #?????# # #?????????? | | #?????# #** #?????????? | | #?????# #** #?????????? | | #?????# #* #?????????? | | #?????# # #?????????? | | #??############## #?????????? | | +###?? g ###???????? | | ????? "T" #???????? | | ????? """ +???????? | | ????? g ! #???????? | | ????? #???????? | | ????????############### #???????? | | ??????????????????????# #???????? | | ??????????????????????# @ < #???????? | | ??????????????????????# #???????? | | ??????????????????????# #####???????? | | ??????????????????????# #???????????? | | ??????????????????????# #???????????? | | ??????????????????????# +???????????? | | ?????????????????????? #???????????? | | ?????????????????????? #???????????? | | ????????????????????? #???????????? | | ?????????????????????### #???????????? | | ???????????????????????# #???????????? | | ???????????????????????# #???????????? | | ??????????????????????? #???????????? | | ???????????????????????# ????????????? | | ???????????????????????? ????????????? | | ???????????????????????? ????????????? | | ??????????????????????????????????????? | | ??????????????????????????????????????? | | ??????????????????????????????????????? | | ??????????????????????????????????????? | | ??????????????????????????????????????? | | ??????????????????????????????????????? | | ??????????????????????????????????????? | | ??????????????????????????????????????? | | ??????????????????????????????????????? | +----------------------------------------------------+ Best States ------------- Heat Dissipation 25 Energy Generation 5 Energy Capacity 100 Matter Stores 300 Matter Capacity 300 Sight Range 16 Terrain Scan Density 10 Evasion (%) 62 Melee Accuracy 6 Offensive Hacking 15 Defensive Hacking 15 Item Schematics ----------------- None Robot Schematics ------------------ None Fabricated ------------ Nothing Alien Tech Used ----------------- None Achievements -------------- None Challenges ------------ None RPGLIKE | -11 -10 -10 -9 -9 -8 --------- Run | Scr Mat Min Mat Min Mat Levels Raised 3 | . . . 1 1 1 XP Earned 7524 | 3000 35 854 1500 635 1500 XP Spent 2950 | . 2700 . . 250 . Upgrades 7 | . 6 . . 1 . Inventory Capacity 1 | . . . . 1 . Hack Attack % 3 | . 3 . . . . Hack Defense % 3 | . 3 . . . . Protomatter Created . | . . . . . . Protomatter Decayed 159 | . . 67 48 44 . Game ------ Seed MachineArmageddonArmor Manual? 0 Play Time 00:09:02 Cumulative 105.2 hours Start 2019.12.26 @ 19:27:40 End 2019.12.26 @ 19:35:41 Sessions 1 Manual Loads 0 Difficulty Rogue Special Mode Winter2019/RPGLIKE Game No. 127 Rogue 127 Adventurer 0 Explorer 0 Win Type - Total 10 Types 9/0/0/1/0/0/0 Lore% 54 Gallery% 63 Achievement% 57 Wizard Run 0 Options --------- ASCII 0 Keyboard 0 Movement Numpad Keybinds 0 Fullscreen 2 Font 18/SmallcapsGlow Map View 76x50 Tactical HUD 1 Map Filters NONE Filters NONE Steam 1 RUN: 0eaa5e92-fdd3-4860-8ed1-875492e45cf7